fUST/lending_fUST_20260225
["ID","MTS","AMOUNT","RATE_DAILY","PERIOD"]
[406633032,1771999845288,-200.0,0.00040643,2]
[406633033,1771999845297,-740.0,0.00040682,2]
[406633034,1771999845307,-167.0,0.00040682,2]
[406633035,1771999845317,-253.0,0.0004069,36]
[406633036,1771999845326,-920.8804,0.00040772,30]
[406633037,1771999845334,-746.0,0.00040811,2]
[406633038,1771999845343,-171.0,0.00040811,2]
[406633039,1771999845353,-500.0,0.00040867,30]
[406633040,1771999845362,-156.591,0.00040873,2]
[406633041,1771999845371,-500.0,0.00040876,30]
[406633042,1771999845381,-500.0,0.0004089,120]
[406633043,1771999845390,-500.0,0.0004089,120]
[406633044,1771999845400,-500.0,0.0004089,120]
[406633045,1771999845409,-500.0,0.0004089,120]
[406633046,1771999845419,-500.0,0.0004089,120]
[406633047,1771999845428,-500.0,0.0004089,120]
[406633048,1771999845438,-500.0,0.0004089,120]
[406633049,1771999845447,-500.0,0.0004089,120]
[406633050,1771999845456,-500.0,0.0004089,120]
[406633051,1771999845466,-500.0,0.0004089,120]
[406633052,1771999845475,-500.0,0.0004089,120]
[406633053,1771999845603,-500.0,0.0004089,120]
[406633054,1771999845613,-500.0,0.0004089,120]
[406633055,1771999845623,-500.0,0.0004089,120]
[406633057,1771999845632,-500.0,0.0004089,120]
[406633059,1771999845641,-500.0,0.0004089,120]
[406633061,1771999845651,-500.0,0.0004089,120]
[406633062,1771999845660,-500.0,0.0004089,120]
[406633063,1771999845669,-500.0,0.0004089,120]
[406633064,1771999845679,-500.0,0.0004089,120]
[406633066,1771999845689,-500.0,0.0004089,120]
[406633068,1771999845698,-500.0,0.0004089,120]
[406633070,1771999845708,-500.0,0.0004089,120]
[406633072,1771999845718,-500.0,0.0004089,120]
[406633074,1771999845727,-500.0,0.0004089,120]
[406633076,1771999845737,-500.0,0.0004089,120]
[406633078,1771999845746,-500.0,0.0004089,120]
[406633080,1771999845755,-500.0,0.0004089,120]
[406633082,1771999845765,-500.0,0.0004089,120]
[406633084,1771999845774,-500.0,0.0004089,120]
[406633086,1771999845784,-500.0,0.0004089,120]
[406633088,1771999845793,-511.95333568,0.0004096,30]
[406633090,1771999845803,-500.0,0.0004096,30]
[406633092,1771999845813,-503.9388536,0.0004096,30]
[406633094,1771999845822,-504.02170934,0.0004096,30]
[406633096,1771999845831,-500.0,0.00040961,120]
[406633098,1771999845840,-500.0,0.00040961,120]
[406633099,1771999845849,-500.0,0.00040961,120]
[406633100,1771999845858,-500.0,0.00040961,120]
[406633101,1771999845867,-500.0,0.00040961,120]
[406633102,1771999845877,-500.0,0.00040961,120]
[406633103,1771999845886,-500.0,0.00040961,120]
[406633104,1771999845895,-500.0,0.00040961,120]
[406633105,1771999845905,-500.0,0.00040961,120]
[406633106,1771999845915,-500.0,0.00040961,120]
[406633107,1771999845924,-500.0,0.00040961,120]
[406633108,1771999845934,-500.0,0.00040961,120]
[406633109,1771999845943,-500.0,0.00040961,120]
[406633110,1771999845952,-500.0,0.00040961,120]
[406633111,1771999845962,-500.0,0.00040961,120]
[406633112,1771999845971,-500.0,0.00040961,120]
[406633113,1771999845981,-500.0,0.00040961,120]
[406633114,1771999845991,-500.0,0.00040961,120]
[406633115,1771999846002,-500.0,0.00040961,120]
[406633116,1771999846012,-500.0,0.00040961,120]
[406633117,1771999846022,-500.0,0.00040961,120]
[406633118,1771999846032,-500.0,0.00040961,120]
[406633119,1771999846043,-500.0,0.00040961,120]
[406633120,1771999846052,-500.0,0.00040961,120]
[406633121,1771999846062,-500.0,0.00040961,120]
[406633122,1771999846071,-500.0,0.00040961,120]
[406633123,1771999846081,-500.0,0.00040961,120]
[406633124,1771999846090,-500.0,0.00040961,120]
[406633125,1771999846099,-500.0,0.00040961,120]
[406633126,1771999846109,-500.0,0.00040961,120]
[406633127,1771999846118,-500.0,0.00040961,120]
[406633128,1771999846128,-500.0,0.00040961,120]
[406633129,1771999846138,-500.0,0.00040961,120]
[406633130,1771999846147,-500.0,0.00040961,120]
[406633131,1771999846157,-500.0,0.00040961,120]
[406633132,1771999846167,-500.0,0.00040961,120]
[406633134,1771999846176,-500.0,0.00040961,120]
[406633136,1771999846186,-500.0,0.00040961,120]
[406633137,1771999846196,-500.0,0.00040961,120]
[406633138,1771999846206,-500.0,0.00040961,120]
[406633139,1771999846216,-500.0,0.00040961,120]
[406633140,1771999846225,-500.0,0.00040961,120]
[406633141,1771999846235,-500.0,0.00040961,120]
[406633142,1771999846244,-500.0,0.00040961,120]
[406633143,1771999846253,-500.0,0.00040961,120]
[406633144,1771999846263,-500.0,0.00040961,120]
[406633145,1771999846272,-500.0,0.00040961,120]
[406633146,1771999846281,-500.0,0.00040961,120]
[406633147,1771999846291,-500.0,0.00040961,120]
[406633148,1771999846301,-500.0,0.00040961,120]
[406633149,1771999846310,-500.0,0.00040961,120]
[406633150,1771999846319,-500.0,0.00040961,120]
[406633151,1771999846329,-500.0,0.00040961,120]
[406633152,1771999846339,-500.0,0.00040961,120]
[406633153,1771999846348,-500.0,0.00040961,120]
[406633154,1771999846358,-500.0,0.00040961,120]
[406633155,1771999846367,-500.0,0.00040961,120]
[406633156,1771999846377,-500.0,0.00040961,120]
[406633157,1771999846386,-500.0,0.00040961,120]
[406633158,1771999846395,-500.0,0.00040961,120]
[406633159,1771999846404,-500.0,0.00040961,120]
[406633160,1771999846414,-500.0,0.00040961,120]
[406633161,1771999846423,-500.0,0.00040961,120]
[406633162,1771999846433,-500.0,0.00040961,120]
[406633163,1771999846443,-500.0,0.00040961,120]
[406633164,1771999846451,-500.0,0.00040961,120]
[406633165,1771999846461,-500.0,0.00040961,120]
[406633166,1771999846470,-500.0,0.00040961,120]
[406633167,1771999846483,-500.0,0.00040961,120]
[406633168,1771999846492,-165.0,0.00040992,30]
[406633169,1771999846502,-500.9,0.00040993,120]
[406633170,1771999846511,-917.68830291,0.00041,120]
[406633171,1771999846521,-1130.67671323,0.00041,30]
[406633172,1771999846530,-161.0,0.00041,120]
[406633173,1771999846540,-751.0,0.00041,10]
[406633174,1771999846549,-4802.56,0.00041095,120]
[406633175,1771999846561,-1000.0,0.00041096,120]
[406633176,1771999846570,-351.35,0.00041096,120]
[406633177,1771999846580,-26567.95,0.00041096,120]
[406633178,1771999846589,-168.96,0.000411,14]
[406633179,1771999846599,-1520.6,0.000411,30]
[406633180,1771999846608,-512.9,0.000411,30]
[406633181,1771999846618,-500.0,0.00041164,30]
[406633182,1771999846627,-517.35676516,0.00041176,30]
[406633183,1771999846637,-316.5,0.00041289,60]
[406633184,1771999846647,-321.097,0.000413,120]
[406633185,1771999846656,-500.0,0.00041329,30]
[406633186,1771999846666,-500.0,0.00041392,30]
[406633187,1771999846675,-500.0,0.00041399,30]
[406633188,1771999846684,-500.0,0.000414,120]
[406633189,1771999846693,-160.0,0.00041561,4]
[406633190,1771999846703,-500.0,0.00041585,30]
[406633191,1771999846712,-500.0,0.00041601,30]
[406633192,1771999846722,-500.9,0.00041622,120]
[406633193,1771999846731,-218.0,0.00041638,30]
[406633194,1771999846742,-500.0,0.00041643,120]
[406633195,1771999846751,-500.0,0.00041643,120]
[406633196,1771999846761,-500.0,0.00041643,120]
[406633197,1771999846770,-177.82471639,0.00041643,120]
[406633198,1771999846780,-151.0,0.00041674,30]
[406633199,1771999846790,-162.0,0.00041722,30]
[406633200,1771999846799,-500.0,0.00041724,30]
[406633201,1771999846808,-157.0,0.00041731,30]
[406633202,1771999846817,-200.0,0.00041753,55]
[406633203,1771999846827,-818.73518854,0.00041784,14]
[406633204,1771999846836,-200.0,0.00041793,120]
[406633205,1771999846845,-15000.0,0.000418,30]
[406633206,1771999846854,-161.0,0.000418,120]
[406633207,1771999846862,-15000.0,0.000418,120]
[406633208,1771999846871,-6046.6,0.000418,2]
[406633209,1771999846881,-403.39,0.000418,5]
[406633210,1771999846890,-150.408005,0.000418,2]
[406633211,1771999846899,-150.0,0.00041889,120]
[406633212,1771999846909,-190.21,0.0004189,30]
[406633213,1771999846917,-428.77,0.0004189,30]
[406633214,1771999846926,-157.83,0.00041892,30]
[406633215,1771999846936,-300.0,0.00041892,2]
[406633216,1771999846945,-15433.26148328,0.00041892,2]
[406633217,1771999846955,-516.03661491,0.00041892,2]
[406633218,1771999846964,-331.22280417,0.00041892,2]
[406633219,1771999846973,-295.60844263,0.00041892,2]
[406633220,1771999846982,-23436.90009352,0.00041892,2]
[406633221,1771999846991,-158.64104971,0.00041892,2]
[406633222,1771999847000,-159.61465781,0.00041892,2]
[406633223,1771999847009,-476.14206464,0.00041892,2]
[406633224,1771999847018,-514.26821964,0.00041892,2]
[406633225,1771999847028,-186.29771496,0.00041892,2]
[406633226,1771999847038,-474.01356946,0.00041892,2]
[406633227,1771999847047,-191.6261612,0.00041892,2]
[406633228,1771999847057,-200.73416874,0.00041892,2]
[406633229,1771999847068,-390.55515006,0.00041892,2]
[406633230,1771999847078,-203.96804675,0.00041892,2]
[406633231,1771999847087,-152.29492308,0.00041892,2]
[406633232,1771999847097,-261.97318983,0.00041892,2]
[406633233,1771999847107,-153.74227746,0.00041892,2]
[406633234,1771999847117,-327.97000079,0.00041892,2]
[406633235,1771999847127,-329.79890419,0.00041892,2]
[406633236,1771999847137,-259.40451078,0.00041892,2]
[406633237,1771999847146,-201.00357409,0.00041892,2]
[406633238,1771999847156,-749191.02782092,0.00041892,120]
[406633239,1771999847166,-500.0,0.00041892,120]
[406633240,1771999847176,-150.0,0.00041892,30]
[406633241,1771999847186,-150.0,0.00041892,30]
[406633242,1771999847196,-324.0573827,0.00041892,30]
[406633243,1771999847206,-186.3738704,0.00041892,30]
[406633244,1771999847216,-5586.00026736,0.00041892,2]
[406633245,1771999847225,-204.4918018,0.00041892,30]
[406633246,1771999847235,-500.0,0.00041892,30]
[406633247,1771999847245,-500.0,0.00041892,30]
[406633248,1771999847254,-525.18225109,0.00041892,30]
[406633249,1771999847263,-1200.0,0.00041892,120]
[406633250,1771999847273,-1200.0,0.00041892,120]
[406633251,1771999847283,-1200.0,0.00041892,120]
[406633252,1771999847292,-1200.0,0.00041892,120]
[406633253,1771999847301,-1233.07614555,0.00041892,120]
[406633254,1771999847310,-156.6149535,0.00041892,30]
[406633255,1771999847320,-156.2232175,0.00041892,30]
[406633256,1771999847329,-150.0,0.00041892,30]
[406633257,1771999847338,-182.8109001,0.00041892,30]
[406633258,1771999847347,-150.0,0.00041892,30]
[406633259,1771999847357,-293.85068442,0.00041894,30]
[406633260,1771999847366,-861.26993527,0.00041895,120]
[406633261,1771999847376,-10000.0,0.00041897,30]
[406633262,1771999847386,-9149.6,0.00041897,30]
[406633263,1771999847395,-422.95333708,0.00041897,120]
[406633264,1771999847404,-4602.1,0.00041898,30]
[406633265,1771999847414,-526.683,0.00041899,30]
[406633266,1771999847424,-320.2646,0.00041899,30]
[406633267,1771999847433,-222.0,0.00041899,30]
[406633268,1771999847553,-556.98,0.000419,14]
[406633269,1771999847564,-204.0,0.000419,67]
[406633270,1771999847574,-1338.86,0.000419,14]
[406633271,1771999847584,-658.78,0.000419,30]
[406633272,1771999847594,-2500.0,0.0004191,120]
[406633273,1771999847603,-500.0,0.0004191,30]
[406633274,1771999847613,-347.4,0.0004191,30]
[406633275,1771999847622,-152.0,0.00041924,30]
[406633276,1771999847632,-233.1815788,0.0004194,120]
[406633277,1771999847641,-500.0,0.00041951,30]
[406633278,1771999847651,-171.0,0.00041952,30]
[406633279,1771999847661,-5288.67,0.00041961,30]
[406633280,1771999847670,-304.99,0.00041961,30]
[406633281,1771999847679,-500.0,0.00041961,10]
[406633282,1771999847689,-218.23,0.00041961,10]
[406633283,1771999847698,-184.23,0.00041961,120]
[406633284,1771999847708,-500.0,0.0004199,30]
[406633285,1771999847717,-286.90656786,0.00042,120]
[406633286,1771999847727,-500.0,0.00042,120]
[406633287,1771999847736,-406.0,0.00042,120]
[406633288,1771999847746,-260.42,0.00042,120]
[406633289,1771999847755,-477.57,0.00042,120]
[406633290,1771999847765,-500.0,0.00042073,30]
[406633291,1771999847774,-500.0,0.000421,30]
[406633292,1771999847783,-262.0,0.00042144,30]
[406633293,1771999847793,-500.0,0.00042184,30]
[406633294,1771999847802,-500.0,0.00042188,30]
[406633295,1771999847811,-500.9,0.00042252,120]
[406633296,1771999847821,-500.0,0.00042282,30]
[406633297,1771999847831,-190.0,0.00042302,30]
[406633298,1771999847840,-200.0,0.00042336,30]
[406633299,1771999847849,-200.0,0.00042336,30]
[406633300,1771999847858,-188.0,0.00042336,30]
[406633301,1771999847867,-500.0,0.00042361,30]
[406633302,1771999847876,-500.0,0.00042399,30]
[406633303,1771999847885,-242.24098964,0.000424,120]
[406633304,1771999847895,-197.79017662,0.000424,120]
[406633305,1771999847904,-205.47260697,0.000424,120]
[406633306,1771999847913,-188.75853152,0.000424,120]
[406633307,1771999847923,-190.53334585,0.000424,120]
[406633308,1771999847933,-199.61462148,0.000424,120]
[406633309,1771999847942,-299.96000002,0.000424,120]
[406633310,1771999847951,-226.22011873,0.000424,120]
[406633311,1771999847961,-276.83916226,0.000424,120]
[406633312,1771999847970,-175.67015016,0.000424,120]
[406633313,1771999847979,-2625.0,0.0004241,120]
[406633314,1771999847988,-500.0,0.00042427,30]
[406633315,1771999847998,-200.0,0.00042442,120]
[406633316,1771999848007,-193.44,0.00042461,120]
[406633317,1771999848017,-285.0,0.00042512,120]
[406633318,1771999848027,-500.0,0.0004262,30]
[406633319,1771999848037,-500.0,0.00042631,30]
[406633320,1771999848046,-160.0,0.00042691,5]
[406633321,1771999848056,-228.00604585,0.000427,120]
[406633322,1771999848066,-171.0,0.00042798,120]
[406633323,1771999848076,-200.0,0.0004284,120]
[406633324,1771999848087,-500.0,0.00042843,30]
[406633325,1771999848097,-500.9,0.00042882,120]
[406633326,1771999848107,-8973.55,0.00042892,5]
[406633327,1771999848116,-200.0,0.000429,120]
[406633328,1771999848126,-512.9,0.000429,30]
[406633329,1771999848136,-2756.25,0.0004291,120]
[406633330,1771999848146,-203.11,0.00042961,120]
[406633331,1771999848156,-199.74033756,0.00042962,5]
[406633332,1771999848167,-506.78,0.00043,120]
[406633333,1771999848176,-300.0,0.00043,120]
[406633334,1771999848187,-500.0,0.00043024,30]
[406633335,1771999848197,-500.0,0.00043052,30]
[406633336,1771999848206,-1000.0,0.00043088,60]
[406633337,1771999848216,-500.0,0.00043151,30]
[406633338,1771999848226,-500.0,0.00043175,30]
[406633339,1771999848236,-873.75648759,0.00043187,7]
[406633340,1771999848245,-154.13543025,0.00043187,7]
[406633341,1771999848256,-409.1,0.0004323,120]
[406633342,1771999848267,-500.0,0.00043265,30]
[406633343,1771999848278,-500.0,0.00043359,30]
[406633344,1771999848289,-500.0,0.00043374,30]
[406633345,1771999848299,-6046.6,0.000434,2]
[406633346,1771999848310,-2894.06,0.0004341,120]
[406633347,1771999848320,-213.29,0.00043461,120]
[406633348,1771999848330,-500.9,0.00043512,120]
[406633349,1771999848342,-500.0,0.00043614,30]
[406633350,1771999848353,-500.0,0.00043653,30]
[406633351,1771999848364,-179.78425889,0.0004367,29]
[406633352,1771999848374,-175.67015016,0.000437,120]
[406633353,1771999848385,-199.557683,0.00043745,60]
[406633354,1771999848394,-8127.39052719,0.00043772,30]
[406633355,1771999848403,-1520.6,0.000438,30]
[406633356,1771999848413,-296.28067851,0.000438,30]
[406633357,1771999848423,-160.0,0.00043821,6]
[406633358,1771999848433,-634.15478552,0.00043823,30]
[406633359,1771999848442,-351.48659582,0.00043823,30]
[406633360,1771999848452,-1000.0,0.00043836,120]
[406633361,1771999848463,-151.0,0.00043836,120]
[406633362,1771999848472,-151.0,0.00043836,120]
[406633363,1771999848485,-151.0,0.00043836,120]
[406633364,1771999848495,-151.0,0.00043836,120]
[406633365,1771999848504,-151.0,0.00043836,120]
[406633366,1771999848514,-284.191824,0.00043836,120]
[406633367,1771999848525,-500.0,0.00043836,16]
[406633368,1771999848534,-500.0,0.00043836,16]
[406633369,1771999848544,-504.6,0.00043836,120]
[406633370,1771999848556,-409.1,0.00043845,120]
[406633371,1771999848566,-177.0,0.00043889,120]
[406633372,1771999848575,-851.09,0.000439,14]
[406633373,1771999848585,-3038.76,0.0004391,120]
[406633374,1771999848594,-278.42224573,0.00043962,5]
[406633375,1771999848603,-228.0,0.00043995,7]
[406633376,1771999848612,-500.0,0.00044,120]
[406633377,1771999848622,-744.54351979,0.00044,7]
[406633378,1771999848631,-500.0,0.00044025,30]
[406633379,1771999848641,-150.0,0.00044037,7]
[406633380,1771999848650,-150.0,0.00044037,7]
[406633381,1771999848659,-168.0,0.00044037,7]
[406633382,1771999848669,-241.0,0.00044059,7]
[406633383,1771999848678,-150.0,0.000441,7]
[406633384,1771999848688,-196.0,0.000441,7]
[406633385,1771999848697,-477.57,0.000441,120]
[406633386,1771999848707,-260.42,0.000441,120]
[406633387,1771999848717,-150.0,0.0004411,30]
[406633388,1771999848727,-500.0,0.00044122,30]
[406633389,1771999848737,-500.9,0.00044142,120]
[406633390,1771999848747,-501.09,0.00044151,30]
[406633391,1771999848757,-512.9,0.000442,30]
[406633392,1771999848767,-500.0,0.00044218,30]
[406633393,1771999848776,-150.0,0.00044244,7]
[406633394,1771999848786,-150.0,0.00044244,7]
[406633395,1771999848795,-158.0,0.00044244,7]
[406633396,1771999848805,-556.98,0.000443,14]
[406633397,1771999848814,-200.0,0.00044301,66]
[406633398,1771999848824,-500.0,0.00044324,30]
[406633399,1771999848834,-187.0,0.00044365,7]
[406633400,1771999848843,-3190.7,0.0004441,120]
[406633401,1771999848853,-285.0,0.0004441,120]
[406633402,1771999848863,-409.1,0.00044461,120]
[406633403,1771999848873,-500.0,0.00044505,30]
[406633404,1771999848883,-150.0,0.00044597,7]
[406633405,1771999848892,-161.0,0.00044597,7]
[406633406,1771999848902,-500.0,0.0004463,30]
[406633407,1771999848912,-500.0,0.00044645,30]
[406633408,1771999848922,-500.0,0.00044724,30]
[406633409,1771999848932,-500.9,0.00044771,120]
[406633410,1771999848943,-174.0,0.00044778,120]
[406633411,1771999848953,-500.0,0.00044798,30]
[406633412,1771999848963,-500.0,0.00044832,30]
[406633413,1771999848973,-4702.6372879,0.00044887,90]
[406633414,1771999848983,-3350.23,0.0004491,120]
[406633415,1771999848993,-171.0,0.00044938,120]
[406633416,1771999849004,-160.0,0.00044951,7]
[406633417,1771999849014,-150.0,0.00044982,120]
[406633418,1771999849026,-229.0,0.00044982,120]
[406633419,1771999849037,-873.75648759,0.00044993,7]
[406633420,1771999849047,-154.13543025,0.00044993,7]
[406633421,1771999849056,-792.09454511,0.00045,30]
[406633422,1771999849066,-510.55114019,0.00045,120]
[406633423,1771999849077,-178.5363038,0.00045,120]
[406633424,1771999849087,-195.24201805,0.00045,30]
[406633425,1771999849097,-150.51893768,0.00045,120]
[406633426,1771999849106,-753.7706118,0.00045,120]
[406633427,1771999849116,-255.393801,0.00045,120]
[406633428,1771999849125,-300.0,0.00045,120]
[406633429,1771999849134,-6046.6,0.00045,2]
[406633430,1771999849143,-500.0,0.0004502,60]
[406633431,1771999849153,-409.1,0.00045076,120]
[406633432,1771999849162,-500.0,0.00045164,60]
[406633433,1771999849171,-1037.2006,0.000452,90]
[406633434,1771999849180,-500.0,0.00045241,60]
[406633435,1771999849189,-500.0,0.00045244,60]
[406633436,1771999849198,-500.0,0.00045259,60]
[406633437,1771999849207,-349.1792859,0.00045317,30]
[406633438,1771999849215,-8315.48581428,0.00045369,30]
[406633439,1771999849224,-500.0,0.00045373,60]
[406633440,1771999849233,-414.04894363,0.000454,120]
[406633441,1771999849243,-500.9,0.00045401,120]
[406633442,1771999849252,-525.99116518,0.00045402,60]
[406633443,1771999849261,-500.0,0.00045405,60]
[406633444,1771999849270,-3517.75,0.0004541,120]
[406633445,1771999849381,-200.0,0.00045451,120]
[406633446,1771999849391,-500.0,0.00045484,60]
[406633447,1771999849400,-1520.6,0.000455,30]
[406633448,1771999849409,-512.9,0.000455,30]
[406633449,1771999849419,-500.0,0.00045541,60]
[406633450,1771999849428,-500.0,0.00045677,60]
[406633451,1771999849437,-409.1,0.00045692,120]
[406633452,1771999849446,-851.09,0.000457,14]
[406633453,1771999849455,-500.0,0.00045712,60]
[406633454,1771999849465,-921.58798995,0.00045726,30]
[406633455,1771999849474,-950.97165283,0.00045727,30]
[406633456,1771999849488,-503.78299619,0.00045828,60]
[406633457,1771999849498,-500.0,0.00045828,60]
[406633458,1771999849507,-500.0,0.00045888,60]
[406633459,1771999849517,-204.0,0.00045889,120]
[406633460,1771999849528,-3693.63,0.0004591,120]
[406633461,1771999849538,-200.0,0.0004595,120]
[406633462,1771999849547,-513.70458427,0.00046,30]
[406633463,1771999849557,-500.0,0.00046,120]
[406633464,1771999849567,-270.0,0.00046,120]
[406633465,1771999849576,-500.9,0.00046031,120]
[406633466,1771999849587,-160.0,0.0004608,8]
[406633467,1771999849596,-500.0,0.00046102,60]
[406633468,1771999849605,-500.0,0.00046204,60]
[406633469,1771999849614,-409.1,0.00046307,120]
[406633470,1771999849624,-285.0,0.00046307,120]
[406633471,1771999849634,-3878.32,0.0004641,120]
[406633472,1771999849645,-547.5868386,0.0004648,60]
[406633473,1771999849655,-556.98,0.000465,14]
[406633474,1771999849665,-1713.34455098,0.00046575,120]
[406633475,1771999849675,-515.75291436,0.00046575,10]
[406633476,1771999849685,-500.9,0.00046661,120]
[406633477,1771999849694,-500.0,0.00046747,60]
[406633478,1771999849704,-1512.58943715,0.00046802,120]
[406633479,1771999849713,-200.0,0.00046855,120]
[406633480,1771999849724,-6046.6,0.000469,2]
[406633481,1771999849733,-4072.23,0.0004691,120]
[406633482,1771999849743,-560.05336891,0.00046921,60]
[406633483,1771999849753,-409.1,0.00046923,120]
[406633484,1771999849773,-9199.29374946,0.00046965,30]
[406633485,1771999849783,-500.0,0.00046979,30]
[406633486,1771999849793,-400.0,0.00047,120]
[406633487,1771999849803,-300.0,0.00047,120]
[406633488,1771999849814,-157.94,0.00047,14]
[406633489,1771999849824,-200.0,0.00047138,14]
[406633490,1771999849835,-150.0,0.00047182,14]
[406633491,1771999849844,-259.0,0.00047182,14]
[406633492,1771999849854,-153.0,0.00047182,30]
[406633493,1771999849864,-171.0,0.00047185,120]
[406633494,1771999849875,-873.75648759,0.00047198,30]
[406633495,1771999849885,-873.75648759,0.00047198,30]
[406633496,1771999849895,-154.13543025,0.00047198,30]
[406633497,1771999849905,-154.13543025,0.00047198,30]
[406633498,1771999849915,-211.0,0.00047205,14]
[406633499,1771999849925,-160.0,0.0004721,9]
[406633500,1771999849935,-150.0,0.0004725,14]
[406633501,1771999849946,-153.0,0.0004725,14]
[406633502,1771999849956,-500.9,0.00047291,120]
[406633503,1771999849967,-1000.0,0.00047397,120]
[406633504,1771999849978,-244.0,0.00047397,120]
[406633505,1771999849988,-308.64,0.00047397,30]
[406633506,1771999849999,-150.0,0.00047404,14]
[406633507,1771999850010,-250.0,0.00047404,14]
[406633508,1771999850020,-150.0,0.00047404,30]
[406633509,1771999850031,-4275.84,0.0004741,120]
[406633510,1771999850042,-1520.6,0.000475,30]
[406633511,1771999850052,-164.0,0.00047534,14]
[406633512,1771999850063,-409.1,0.00047538,120]
[406633513,1771999850073,-36774.56186688,0.0004769,2]
[406633514,1771999850083,-272.0,0.00047782,14]
[406633515,1771999850092,-231.0,0.00047889,120]
[406633516,1771999850102,-4489.64,0.0004791,120]
[406633517,1771999850112,-274.2187229,0.00047916,120]
[406633518,1771999850122,-500.9,0.00047921,120]
[406633519,1771999850133,-601.21376001,0.00048,2]
[406633520,1771999850143,-162.2867338,0.00048,120]
[406633521,1771999850153,-500.0,0.00048,120]
[406633522,1771999850163,-10000.0,0.00048,120]
[406633523,1771999850174,-308.64,0.00048082,34]
[406633524,1771999850184,-409.1,0.00048154,120]
[406633525,1771999850194,-200.0,0.000482,120]
[406633526,1771999850204,-285.0,0.00048205,120]
[406633527,1771999850214,-160.0,0.0004834,10]
[406633528,1771999850224,-4714.12,0.0004841,120]
[406633529,1771999850235,-200.0,0.00048421,120]
[406633530,1771999850246,-851.09,0.000485,14]
[406633531,1771999850256,-500.9,0.0004855,120]
[406633532,1771999850267,-9269.11919405,0.00048562,30]
[406633533,1771999850276,-308.64,0.00048767,38]
[406633534,1771999850286,-409.1,0.00048769,120]
[406633535,1771999850296,-4949.82,0.0004891,120]
[406633536,1771999850305,-588.36227025,0.00049,120]
[406633537,1771999850315,-551.0,0.00049,120]
[406633538,1771999850325,-200.0,0.00049065,120]
[406633539,1771999850334,-500.9,0.0004918,120]
[406633540,1771999850344,-817.67,0.00049315,120]
[406633541,1771999850354,-621.32188523,0.00049315,120]
[406633542,1771999850363,-409.1,0.00049385,120]
[406633543,1771999850373,-5197.32,0.0004941,120]
[406633544,1771999850383,-500.0,0.00049452,30]
[406633545,1771999850392,-308.64,0.00049452,42]
[406633546,1771999850402,-160.0,0.0004947,11]
[406633547,1771999850412,-1119.59726381,0.00049536,30]
[406633548,1771999850422,-500.9,0.0004981,120]
[406633549,1771999850432,-245.527,0.00049885,88]
[406633550,1771999850442,-258.0,0.00049889,120]
[406633551,1771999850451,-5457.18,0.0004991,120]
[406633552,1771999850460,-227.08683427,0.0005,20]
[406633553,1771999850470,-996.69382025,0.0005,120]